bitfinex-derivatives/quotes_SOLF0:USTF0_20240824
["timestamp","ask_amount","ask_price","bid_price","bid_amount"]
[1724506365904,3.1683,157.74,157.71,3.21531808]
[1724506367196,7.79,157.74,157.71,0.04651808]
[1724506368399,3.1687,157.72,157.71,0.04651808]
[1724506369203,3.1686,157.73,157.71,0.04651808]
[1724506370303,3.1687,157.72,157.71,0.04651808]
[1724506373526,3.1686,157.73,157.71,0.04651808]
[1724506374404,7.8337297,157.75,157.71,3.21541808]
[1724506374405,3.1684,157.74,157.71,3.21541808]
[1724506375708,3.2119297,157.75,157.71,7.83651808]
[1724506375910,0.0437297,157.75,157.72,3.03223424]
[1724506376109,0.0437297,157.75,157.73,3.03223424]
[1724506376306,0.0437297,157.75,157.73,3.1684]
[1724506377311,0.0437297,157.75,157.71,7.83651808]
[1724506377610,0.0437297,157.75,157.72,8.5640736]
[1724506377907,0.0437297,157.75,157.73,3.03180619]
[1724506378209,0.0437297,157.75,157.73,3.1684]
[1724506378811,3.2118297,157.75,157.73,3.1684]
[1724506379303,0.0437297,157.75,157.73,3.1684]
[1724506380908,3.2119297,157.75,157.72,3.1687]
[1724506381210,3.2119297,157.75,157.73,3.03174458]
[1724506381507,3.2119297,157.75,157.72,3.1687]
[1724506381728,3.2119297,157.75,157.73,3.1685]
[1724506383609,3.2119297,157.75,157.72,3.1686]
[1724506383809,3.1683,157.74,157.73,3.03156442]
[1724506384211,0.0437297,157.75,157.72,3.1686]
[1724506384414,0.0437297,157.75,157.73,3.03172002]
[1724506384605,3.2119297,157.75,157.72,3.1686]
[1724506384808,3.2119297,157.75,157.73,3.03159322]
[1724506385112,3.2119297,157.75,157.72,3.1686]
[1724506385406,3.2119297,157.75,157.73,3.0316957]
[1724506385613,3.2119297,157.75,157.72,3.1686]
[1724506385808,3.2119297,157.75,157.73,3.03161754]
[1724506386009,3.2119297,157.75,157.72,3.1686]
[1724506386212,3.2119297,157.75,157.73,6.20011849]
[1724506386515,3.2119297,157.75,157.71,7.83651808]
[1724506386711,3.2119297,157.75,157.72,6.20026831]
[1724506386913,3.2119297,157.75,157.73,3.03166831]
[1724506387114,3.2119297,157.75,157.72,3.1686]
[1724506387314,3.2119297,157.75,157.73,3.03169238]
[1724506387518,3.1684,157.74,157.71,3.21541808]
[1724506387719,7.8337297,157.75,157.71,3.21541808]
[1724506388019,3.1683,157.74,157.71,0.04651808]
[1724506388508,3.1683,157.74,157.72,3.03209747]
[1724506388714,3.1683,157.74,157.71,3.21531808]
[1724506388907,3.1683,157.74,157.72,3.03197503]
[1724506389109,3.2119297,157.75,157.72,3.1686]
[1724506389309,3.2119297,157.75,157.73,3.03134248]
[1724506389508,3.2119297,157.75,157.72,3.1686]
[1724506389707,3.2119297,157.75,157.73,3.03126995]
[1724506390014,3.2119297,157.75,157.72,3.1686]
[1724506390313,3.2119297,157.75,157.73,3.0312381]
[1724506390513,3.2119297,157.75,157.72,10.9586]
[1724506390910,3.2119297,157.75,157.73,3.03089495]
[1724506391111,3.2119297,157.75,157.73,3.1685]
[1724506393212,0.0437297,157.75,157.73,10.9585]
[1724506394016,0.0437297,157.75,157.74,3.03149654]
[1724506394212,0.0437297,157.75,157.73,10.9585]
[1724506395312,3.2118297,157.75,157.73,10.9585]
[1724506395620,0.0437297,157.75,157.72,3.1686]
[1724506395818,0.0437297,157.75,157.73,3.03187373]
[1724506396117,0.0437297,157.75,157.72,3.1686]
[1724506396513,3.2119297,157.75,157.72,3.1686]
[1724506396916,3.2119297,157.75,157.73,3.03164884]
[1724506397217,3.2119297,157.75,157.72,3.1686]
[1724506398715,3.1683,157.74,157.72,3.1686]
[1724506401344,7.8337297,157.75,157.71,0.04651808]
[1724506401624,3.1687,157.72,157.71,0.04651808]
[1724506402115,3.1687,157.72,157.71,3.07829217]
[1724506404236,3.1687,157.72,157.71,0.04651808]
[1724506404617,3.1687,157.72,157.71,3.07872176]
[1724506405022,3.1687,157.72,157.71,3.07865932]
[1724506407434,3.1687,157.72,157.71,0.04651808]
[1724506407721,25.34,157.99,157.71,42.02782922]
[1724506407922,7.79,157.97,157.89,7.79]
[1724506408120,7.79,157.93,157.84,7.86472745]
[1724506408327,7.79,157.89,157.85,5.50852694]
[1724506408520,7.79,157.89,157.86,5.50852694]
[1724506408721,3.9056,157.98,157.87,3.03131114]
[1724506408916,7.79,157.93,157.91,0.04759917]
[1724506410337,3.1647,157.92,157.91,0.04759917]
[1724506410516,10.9547,157.92,157.91,0.04759917]
[1724506410837,7.79,157.96,157.91,0.04759917]
[1724506411415,7.79,157.92,157.84,7.79]
[1724506412324,0.04590935,157.9,157.86,3.21295727]
[1724506412833,0.04590935,157.9,157.87,7.79]
[1724506413532,0.04590935,157.9,157.86,11.00295727]
[1724506413933,0.04590935,157.9,157.87,3.1657]
[1724506414128,0.04590935,157.9,157.86,7.83715727]
[1724506414520,0.04590935,157.9,157.88,7.79]
[1724506414925,0.04590935,157.9,157.86,0.04715727]
[1724506415129,0.04590935,157.9,157.87,7.79]
[1724506415530,0.04590935,157.9,157.89,7.79]
[1724506416331,3.1645,157.93,157.88,3.1653]
[1724506416529,3.9056,157.98,157.92,7.79]
[1724506416731,3.9056,157.98,157.94,7.79]
[1724506417032,3.9056,157.98,157.92,7.79]
[1724506417232,3.9056,157.98,157.88,2.6282]
[1724506417431,3.9056,157.98,157.93,0.03994702]
[1724506419337,3.1641,157.95,157.93,0.03994702]
[1724506420022,19.45,158.08,157.93,0.03994702]
[1724506420023,19.45,158.04,157.93,19.48994702]
[1724506420246,19.45,158.02,157.97,0.04776202]
[1724506420425,19.45,158.0,157.97,0.04776202]
[1724506420630,1.2716,157.99,157.97,0.04776202]
[1724506420825,19.45,157.98,157.85,1.2426]
[1724506421144,4.46042971,157.99,157.86,19.45]
[1724506421334,1.2863,157.97,157.86,19.45]
[1724506421648,1.3405,157.96,157.86,19.45]
[1724506421936,0.04197832,157.93,157.89,0.04515644]
[1724506422324,3.20647832,157.93,157.89,0.04515644]
[1724506422727,3.20647832,157.93,157.89,3.21025644]
[1724506423236,3.20647832,157.93,157.89,0.04515644]
[1724506424336,3.20647832,157.93,157.9,3.1651]
[1724506425534,3.20647832,157.93,157.89,3.21035644]
[1724506426334,0.04197832,157.93,157.9,3.165]
[1724506427335,3.20647832,157.93,157.89,3.21025644]
[1724506428242,0.04197832,157.93,157.9,3.165]
[1724506428933,0.04197832,157.93,157.89,0.04515644]
[1724506428934,3.20647832,157.93,157.89,3.21035644]
[1724506429329,3.20647832,157.93,157.89,0.04515644]
[1724506429330,0.04197832,157.93,157.89,0.04515644]
[1724506430044,3.165,157.91,157.89,0.04515644]
[1724506430459,0.04197832,157.93,157.89,0.04515644]
[1724506432433,3.1649,157.91,157.89,0.04515644]
[1724506435635,3.1651,157.9,157.89,0.04515644]
[1724506437141,0.04197832,157.93,157.82,19.45]
[1724506437348,19.45,157.94,157.82,19.45]
[1724506437736,19.45,157.94,157.84,3.1662]
[1724506438034,19.45,157.94,157.87,0.04169488]
[1724506438243,3.1656,157.88,157.87,0.04169488]
[1724506439235,3.1653,157.89,157.87,7.81169488]
[1724506439441,3.1653,157.89,157.88,7.77]
[1724506440047,0.04540875,157.91,157.88,7.77]
[1724506440251,0.04540875,157.91,157.87,0.04169488]
[1724506440437,0.04540875,157.91,157.9,7.77]
[1724506440438,3.21030875,157.91,157.9,7.77]
[1724506441540,0.04540875,157.91,157.9,7.77]
[1724506442238,3.21030875,157.91,157.9,7.77]
[1724506442447,3.21030875,157.91,157.88,22.6154]
[1724506443236,0.04540875,157.91,157.88,22.6154]
[1724506446046,0.04540875,157.91,157.89,3.1653]
[1724506447642,3.1645,157.94,157.9,3.1649]
[1724506448346,3.1642,157.95,157.91,3.1649]
[1724506448539,19.45,157.98,157.88,1.2356]
[1724506448739,0.04049995,157.95,157.91,0.04341683]
[1724506449136,3.1647,157.92,157.91,0.04341683]
[1724506450745,3.1645,157.93,157.91,0.04341683]
[1724506451149,0.04049995,157.95,157.91,0.04341683]
[1724506452248,3.1647,157.92,157.91,0.04341683]
[1724506452844,22.6424223,157.92,157.84,1.2946]
[1724506453044,19.45,157.9,157.84,1.2946]
[1724506453646,3.1656,157.88,157.84,4.4607]
[1724506453844,3.20732824,157.88,157.84,4.50788677]
[1724506454244,3.20732824,157.88,157.85,3.1661]
[1724506454849,0.04172824,157.88,157.85,3.1661]
[1724506457350,0.04172824,157.88,157.86,3.1658]
[1724506459142,0.04172824,157.88,157.84,0.04718677]
[1724506459752,0.04172824,157.88,157.85,3.166]
[1724506460150,0.04172824,157.88,157.84,0.04718677]
[1724506460650,0.04172824,157.88,157.86,3.1657]
[1724506461247,0.04172824,157.88,157.87,3.1657]
[1724506464672,0.04172824,157.88,157.87,10.9457]
[1724506465445,2.589,157.98,157.88,3.1653]
[1724506465651,7.78,157.96,157.89,7.78]
[1724506465851,3.1648,157.92,157.89,7.78]
[1724506466051,1.252,157.98,157.89,10.9452]
[1724506466255,3.1644,157.94,157.9,7.78]
[1724506466456,0.04659973,157.94,157.9,7.82438796]
[1724506467156,3.1648,157.92,157.9,0.04438796]
[1724506470364,3.1649,157.91,157.9,0.04438796]
[1724506471554,3.166,157.86,157.81,1.2381]
[1724506471756,7.78,157.88,157.81,9.0181]
[1724506472048,7.78,157.88,157.83,3.1663]
[1724506472654,0.04680882,157.87,157.84,3.21479698]
[1724506473260,0.04680882,157.87,157.84,0.04849698]
[1724506473261,3.21260882,157.87,157.84,0.04849698]
[1724506475964,3.1659,157.86,157.84,0.04849698]
[1724506477062,3.21250882,157.87,157.84,0.04849698]
[1724506493774,3.1659,157.86,157.84,0.04849698]
[1724506493973,7.82680882,157.87,157.84,0.04849698]
[1724506494174,7.78,157.86,157.84,0.04849698]
[1724506495276,3.1661,157.85,157.84,0.04849698]
[1724506495472,7.78,157.86,157.79,3.1671]
[1724506495672,7.78,157.86,157.79,10.9471]
[1724506496080,10.89124461,157.86,157.79,10.9471]
[1724506496576,0.04252808,157.84,157.81,0.0405008]
[1724506496774,3.20892808,157.84,157.81,0.0405008]
[1724506499278,0.04252808,157.84,157.83,7.78]
[1724506503384,0.04252808,157.84,157.82,3.1667]
[1724506503593,0.04252808,157.84,157.83,7.78]
[1724506504281,7.11771042,157.92,157.81,0.0405008]
[1724506504487,7.11771042,157.92,157.86,7.78]
[1724506504779,14.89771042,157.92,157.86,7.78]
[1724506504984,3.1654,157.89,157.84,3.1662]
[1724506505170,3.1654,157.89,157.85,7.78]
[1724506505374,3.20914886,157.89,157.85,7.82864377]
[1724506508488,3.20914886,157.89,157.85,0.04864377]
[1724506509392,3.1655,157.88,157.85,0.04864377]
[1724506521498,0.04374886,157.89,157.85,3.21474377]
[1724506523395,0.04374886,157.89,157.86,10.9459]
[1724506525195,0.04374886,157.89,157.87,3.1657]
[1724506526305,0.04374886,157.89,157.87,10.9457]
[1724506529603,7.78,157.96,157.87,7.78]
[1724506529806,3.1644,157.94,157.9,7.78]
[1724506530710,3.21124282,157.94,157.9,7.8202097]
[1724506532305,3.1649,157.91,157.9,0.0402097]
[1724506532506,7.78,157.91,157.8,34.1086818]
[1724506532740,31.12,157.93,157.8,11.9544993]
[1724506532741,7.78,157.85,157.8,11.9544993]
[1724506532908,7.78,157.85,157.81,3.1668]
[1724506533611,7.82795269,157.85,157.81,3.20729243]
[1724506534111,0.04795269,157.85,157.81,3.20729243]
[1724506534313,0.04795269,157.85,157.82,3.1667]
[1724506534507,0.04795269,157.85,157.82,10.9467]
[1724506534815,0.04795269,157.85,157.83,10.9463]
[1724506535712,7.78,157.91,157.84,7.78]
[1724506536723,0.04802359,157.89,157.86,7.82159708]
[1724506536905,0.04490438,157.89,157.86,7.82051542]
[1724506537813,0.04490438,157.89,157.86,0.04051542]
[1724506538315,7.82490438,157.89,157.86,0.04051542]
[1724506539299,3.1655,157.88,157.86,0.04051542]
[1724506540017,3.21020438,157.89,157.86,0.04051542]
[1724506541511,3.1655,157.88,157.86,0.04051542]
[1724506542307,7.82490438,157.89,157.86,0.04051542]
[1724506542532,3.1657,157.87,157.86,0.04051542]
[1724506542811,10.9457,157.87,157.86,0.04051542]
[1724506545019,3.1657,157.87,157.86,0.04051542]
[1724506546519,10.9457,157.87,157.86,0.04051542]
[1724506550422,3.1657,157.87,157.86,0.04051542]
[1724506552521,10.9457,157.87,157.86,0.04051542]
[1724506559546,10.9457,157.87,157.79,1.3355]
[1724506559547,3.1664,157.84,157.79,1.3355]
[1724506559726,10.9464,157.84,157.79,1.3355]
[1724506560229,10.9464,157.84,157.79,4.5027]
[1724506560419,0.04651253,157.83,157.8,0.04841822]
[1724506561721,0.04651253,157.83,157.82,7.78]
[1724506561931,7.78,157.9,157.82,7.78]
[1724506562120,10.96696078,157.9,157.83,7.78]
[1724506562324,3.1657,157.87,157.83,7.78]
[1724506563027,3.2101267,157.87,157.83,7.82664777]
[1724506566133,3.2101267,157.87,157.83,0.04664777]
[1724506567134,3.166,157.86,157.83,0.04664777]
[1724506571133,3.2101267,157.87,157.83,0.04664777]
[1724506573633,3.166,157.86,157.83,0.04664777]
[1724506575934,3.2101267,157.87,157.83,0.04664777]
[1724506576736,3.1659,157.86,157.83,0.04664777]
[1724506578236,3.1661,157.85,157.83,0.04664777]
[1724506581563,7.78,157.86,157.83,0.04664777]
[1724506581564,3.1659,157.86,157.83,0.04664777]
[1724506581738,0.0444267,157.87,157.83,0.04664777]
[1724506582629,3.2102267,157.87,157.83,0.04664777]
[1724506584674,3.1659,157.86,157.83,0.04664777]
[1724506592342,10.9902267,157.87,157.83,0.04664777]
[1724506593346,0.0444267,157.87,157.83,0.04664777]
[1724506594445,0.0444267,157.87,157.83,3.21314777]
[1724506595243,0.0444267,157.87,157.83,0.04664777]
[1724506610853,0.0444267,157.87,157.84,3.1662]
[1724506611046,0.0444267,157.87,157.83,7.82664777]
[1724506611456,0.0444267,157.87,157.83,10.99294777]
[1724506612753,0.0444267,157.87,157.83,3.21294777]
[1724506614352,7.8244267,157.87,157.83,0.04664777]
[1724506617461,0.0444267,157.87,157.83,0.04664777]
[1724506617651,7.8244267,157.87,157.83,0.04664777]
[1724506620465,10.9902267,157.87,157.83,0.04664777]
[1724506620759,7.78,157.85,157.83,0.04664777]
[1724506620958,10.9902267,157.87,157.83,0.04664777]
[1724506621889,0.0444267,157.87,157.83,0.04664777]
[1724506624062,7.8244267,157.87,157.83,0.04664777]
[1724506629563,0.0444267,157.87,157.83,0.04664777]
[1724506634571,0.0444267,157.87,157.84,7.78]
[1724506635086,0.0444267,157.87,157.84,10.9462]
[1724506636568,0.0444267,157.87,157.83,0.04664777]
[1724506637466,0.0444267,157.87,157.83,3.21304777]
[1724506641969,0.0444267,157.87,157.83,0.04664777]
[1724506643268,0.0444267,157.87,157.83,3.21294777]
[1724506644873,7.8244267,157.87,157.83,3.21294777]
[1724506646568,0.0444267,157.87,157.84,3.1663]
[1724506648595,226.0,158.08,157.83,7.82664777]
[1724506648774,7.78,157.93,157.83,9.0033]
[1724506648966,10.9446,157.93,157.86,3.1657]
[1724506649367,3.11113131,157.95,157.85,3.10068489]
[1724506649571,7.78,157.92,157.88,0.04018668]
[1724506649766,7.78,157.92,157.88,0.04154394]
[1724506650172,3.12232961,157.95,157.89,3.1652]
[1724506650374,7.78,157.92,157.88,0.04154394]
[1724506650675,7.78,157.92,157.88,0.04348939]
[1724506652178,7.78,157.9,157.88,0.04348939]
[1724506653473,3.1645,157.93,157.88,0.04348939]
[1724506653474,7.78,157.89,157.88,0.04348939]
[1724506655177,3.1648,157.92,157.88,0.04348939]
[1724506655379,7.78,157.9,157.88,0.04348939]
[1724506655575,3.1646,157.93,157.88,0.04348939]
[1724506655773,3.1644,157.94,157.88,0.04348939]
[1724506655977,7.78,157.9,157.88,0.04348939]
[1724506658710,7.78,157.89,157.88,0.04348939]
[1724506664475,1.3143,157.92,157.88,0.04348939]
[1724506664695,7.78,157.9,157.88,0.04348939]
[1724506670786,7.78,157.89,157.88,0.04348939]
[1724506670996,31.12,157.93,157.76,2.92905373]
[1724506670997,7.78,157.85,157.78,2.5365]
[1724506671683,7.78,157.85,157.78,14.4909993]
[1724506671877,0.04850412,157.83,157.8,0.04368096]
[1724506672080,0.04850412,157.83,157.82,3.1667]
[1724506679188,7.78,157.9,157.83,3.1663]
[1724506680092,10.9451,157.9,157.83,3.1663]
[1724506680288,10.9451,157.9,157.85,0.0437895]
[1724506680692,3.1651,157.9,157.85,0.0437895]
[1724506680917,7.78,157.89,157.85,0.0437895]
[1724506685295,3.1651,157.9,157.85,0.0437895]
[1724506686792,12.1849,157.91,157.85,0.0437895]
[1724506687294,3.1648,157.92,157.86,7.78]
[1724506688101,3.1648,157.92,157.86,10.9459]
[1724506688701,3.1649,157.91,157.86,7.78]
[1724506688902,7.78,157.91,157.85,0.0437895]
[1724506689104,7.78,157.9,157.85,0.0437895]
[1724506689800,7.78,157.9,157.85,3.2097895]
[1724506690601,3.847,157.98,157.86,10.9459]
[1724506690602,10.9445,157.93,157.86,10.9459]
[1724506690798,10.9445,157.93,157.88,0.04481721]
[1724506696707,7.78,157.91,157.88,0.04481721]
[1724506698506,7.78,157.9,157.88,0.04481721]
[1724506700604,10.9451,157.9,157.88,0.04481721]
[1724506700902,7.78,157.9,157.88,0.04481721]
[1724506701808,10.9452,157.9,157.88,0.04481721]
[1724506702600,3.1652,157.9,157.88,0.04481721]
[1724506702809,7.78,157.89,157.88,0.04481721]
[1724506704707,10.9453,157.89,157.88,0.04481721]
[1724506704906,4.046,157.93,157.88,0.04481721]
[1724506705106,7.78,157.89,157.88,0.04481721]
[1724506706110,10.9453,157.89,157.88,0.04481721]
[1724506708521,7.78,157.89,157.78,36.6451818]
[1724506708719,35.166,157.93,157.79,8.6528737]
[1724506708720,7.78,157.85,157.79,8.6528737]
[1724506708917,7.78,157.85,157.79,7.78]
[1724506709116,7.78,157.85,157.81,3.1668]
[1724506709517,7.82106255,157.85,157.81,3.21032272]
[1724506715523,0.04106255,157.85,157.81,3.21032272]
[1724506718331,0.04106255,157.85,157.82,10.9467]
[1724506721830,0.04106255,157.85,157.82,3.1667]
[1724506724323,7.82106255,157.85,157.81,0.04352272]
[1724506727643,7.82106255,157.85,157.81,3.21042272]
[1724506728033,7.82106255,157.85,157.81,0.04352272]
[1724506734640,7.78,157.84,157.81,0.04352272]
[1724506735937,7.78,157.83,157.81,0.04352272]
[1724506736832,7.78,157.82,157.81,0.04352272]
[1724506739336,7.78,157.82,157.74,22.1541825]
[1724506739640,7.78,157.81,157.75,8.65268323]
[1724506739836,7.78,157.81,157.76,0.87268323]
[1724506740138,7.78,157.83,157.76,8.65268323]
[1724506740336,0.04417217,157.81,157.78,7.82750883]
[1724506740536,0.04417217,157.81,157.79,7.78]
[1724506740732,0.04417217,157.81,157.79,10.9471]
[1724506746342,0.04417217,157.81,157.8,3.1671]
[1724506746542,7.78,157.87,157.79,7.78]
[1724506746742,7.78,157.87,157.81,7.78]
[1724506746943,7.78,157.89,157.81,7.78]
[1724506747544,0.04861661,157.87,157.83,0.046401]
[1724506750551,7.82861661,157.87,157.83,0.046401]
[1724506751246,7.78,157.86,157.83,0.046401]
[1724506753752,0.04861661,157.87,157.83,0.046401]
[1724506753953,7.78,157.86,157.83,0.046401]
[1724506762359,0.04861661,157.87,157.83,0.046401]
[1724506764255,0.04861661,157.87,157.83,3.212801]
[1724506769152,0.04861661,157.87,157.83,0.046401]
[1724506771958,7.78,157.86,157.83,0.046401]
[1724506780488,7.78,157.84,157.83,0.046401]
[1724506782763,0.04861661,157.87,157.77,10.3777]
[1724506782764,7.78,157.85,157.77,2.5977]
[1724506783069,7.78,157.81,157.77,2.5977]
[1724506783869,7.82811764,157.81,157.77,2.6418616]
[1724506784261,7.82811764,157.81,157.77,5.8094616]
[1724506785267,0.04811764,157.81,157.78,3.1675]
[1724506785569,0.04811764,157.81,157.77,2.6418616]
[1724506785762,0.04811764,157.81,157.77,5.8094616]
[1724506785967,0.04811764,157.81,157.77,2.6418616]
[1724506788272,0.04811764,157.81,157.77,13.5894616]
[1724506790781,0.04811764,157.81,157.78,3.1675]
[1724506791875,0.04811764,157.81,157.78,10.9475]
[1724506793283,0.04811764,157.81,157.77,2.6418616]
[1724506793482,0.04811764,157.81,157.77,10.4218616]
[1724506793678,0.04811764,157.81,157.79,7.78]
[1724506793884,0.04811764,157.81,157.79,10.9472]
[1724506796786,0.04811764,157.81,157.8,3.1671]
[1724506798191,7.78,157.88,157.8,10.98555511]
[1724506798393,7.78,157.88,157.8,7.78]
[1724506798591,7.78,157.88,157.82,3.1666]
[1724506798984,0.04527288,157.87,157.83,0.04563712]
[1724506800795,7.82527288,157.87,157.83,0.04563712]
[1724506801195,7.78,157.85,157.83,0.04563712]
[1724506810105,0.04527288,157.87,157.83,0.04563712]
[1724506810300,7.78,157.85,157.83,0.04563712]
[1724506817299,7.78,157.84,157.83,0.04563712]
[1724506820804,6.36068532,157.85,157.83,0.04563712]
[1724506821011,7.78,157.84,157.83,0.04563712]
[1724506822233,7.78,157.85,157.83,0.04563712]
[1724506828416,0.04527288,157.87,157.83,0.04563712]
[1724506828607,7.82527288,157.87,157.83,0.04563712]
[1724506831715,0.04527288,157.87,157.83,0.04563712]
[1724506831910,0.04527288,157.87,157.83,7.82563712]
[1724506832715,0.04527288,157.87,157.83,10.99193712]
[1724506833313,0.04527288,157.87,157.83,3.21193712]
[1724506839926,7.82527288,157.87,157.83,0.04563712]
[1724506840128,7.78,157.85,157.83,0.04563712]
[1724506841125,0.04527288,157.87,157.83,0.04563712]
[1724506841326,7.78,157.84,157.83,0.04563712]
[1724506857144,10.9463,157.84,157.83,0.04563712]
[1724506860246,7.78,157.84,157.83,0.04563712]
[1724506860439,10.3479,157.86,157.83,0.04563712]
[1724506860853,7.78,157.86,157.83,0.04563712]
[1724506861752,3.21107288,157.87,157.83,0.04563712]
[1724506861941,7.78,157.86,157.83,0.04563712]
[1724506865054,3.21097288,157.87,157.83,0.04563712]
[1724506865245,7.78,157.86,157.83,0.04563712]
[1724506865449,0.04527288,157.87,157.83,0.04563712]
[1724506867149,7.78,157.85,157.83,0.04563712]
[1724506869052,7.78,157.84,157.83,0.04563712]
[1724506869555,3.21097288,157.87,157.83,0.04563712]
[1724506869764,7.78,157.85,157.83,0.04563712]
[1724506876057,7.78,157.84,157.83,0.04563712]
[1724506881567,3.21107288,157.87,157.83,0.04563712]
[1724506881761,7.78,157.84,157.83,0.04563712]
[1724506884568,10.9463,157.84,157.76,4.4213]
[1724506884767,7.78,157.81,157.77,0.86837334]
[1724506885479,7.82629299,157.81,157.77,0.91714816]
[1724506885662,7.78,157.79,157.77,0.04877482]
[1724506887163,7.78,157.78,157.77,0.04877482]
[1724506888563,0.04629299,157.81,157.77,0.04877482]
[1724506888768,0.04629299,157.81,157.77,7.82877482]
[1724506888962,0.04629299,157.81,157.77,0.04877482]
[1724506889274,0.04629299,157.81,157.79,7.78]
[1724506889973,0.04629299,157.81,157.8,7.78]
[1724506890169,7.78,157.87,157.8,10.9471]
[1724506890367,10.9454,157.89,157.82,7.78]
[1724506891074,0.04091952,157.87,157.83,0.04095741]
[1724506891762,0.04091952,157.87,157.83,7.82095741]
[1724506891961,0.04091952,157.87,157.84,7.78]
[1724506893874,0.04091952,157.87,157.83,0.04095741]
[1724506894072,7.82091952,157.87,157.83,0.04095741]
[1724506894874,7.78,157.85,157.83,0.04095741]
[1724506903173,7.78,157.84,157.83,0.04095741]
[1724506915185,3.20671952,157.87,157.83,0.04095741]
[1724506915584,7.78,157.84,157.83,0.04095741]
[1724506918184,7.78,157.85,157.83,0.04095741]
[1724506918380,0.04091952,157.87,157.83,0.04095741]
[1724506918600,7.78,157.85,157.83,0.04095741]
[1724506925287,3.20661952,157.87,157.83,0.04095741]
[1724506925491,7.78,157.84,157.83,0.04095741]
[1724506932200,7.78,157.84,157.76,0.86972821]
[1724506932397,7.78,157.8,157.76,0.86972821]
[1724506932799,7.78,157.8,157.76,4.03752821]
[1724506932997,7.78,157.78,157.77,0.86972821]
[1724506933221,7.78,157.78,157.76,0.04057427]
[1724506936004,7.82354587,157.79,157.76,0.04057427]
[1724506936301,0.04354587,157.79,157.76,0.04057427]
[1724506936495,0.04354587,157.79,157.77,7.78]
[1724506936697,0.04354587,157.79,157.77,9.0177]
[1724506937306,0.04354587,157.79,157.78,3.1675]
[1724506937509,0.04354587,157.79,157.78,10.9475]
[1724506938708,7.78,157.84,157.78,10.9475]
[1724506939009,2.5162,157.91,157.81,7.78]
[1724506939210,7.78,157.89,157.83,7.78]
[1724506939601,0.04597139,157.88,157.84,0.04156975]
[1724506942309,7.82597139,157.88,157.84,0.04156975]
[1724506942707,7.78,157.86,157.84,0.04156975]
[1724506943711,7.78,157.85,157.84,0.04156975]
[1724506944605,0.04597139,157.88,157.84,0.04156975]
[1724506944807,7.78,157.86,157.84,0.04156975]
[1724506949739,7.78,157.87,157.84,0.04156975]
[1724506952318,0.04597139,157.88,157.84,0.04156975]
[1724506952517,7.78,157.86,157.84,0.04156975]
[1724506954412,7.78,157.85,157.84,0.04156975]
[1724506970125,3.21147139,157.88,157.84,0.04156975]
[1724506970319,7.78,157.86,157.84,0.04156975]
[1724506976232,3.21147139,157.88,157.84,0.04156975]
[1724506976530,7.78,157.86,157.84,0.04156975]
[1724506991745,7.82597139,157.88,157.84,0.04156975]
[1724506995333,7.78,157.87,157.84,0.04156975]
[1724507001849,0.04597139,157.88,157.84,0.04156975]
[1724507004952,7.78,157.87,157.84,3.20786975]
[1724507005860,0.04597139,157.88,157.86,3.1657]
[1724507006050,7.82597139,157.88,157.86,3.1657]
[1724507006964,7.82597139,157.88,157.85,3.166]
[1724507010259,7.78,157.87,157.85,3.166]
[1724507010660,7.82597139,157.88,157.85,3.166]
[1724507017064,7.82597139,157.88,157.84,3.20776975]
[1724507020669,0.04597139,157.88,157.85,3.166]
[1724507022969,0.04597139,157.88,157.84,3.20776975]
[1724507024568,0.04597139,157.88,157.85,3.1661]
[1724507029703,0.04597139,157.88,157.84,3.20776975]
[1724507033070,7.82597139,157.88,157.84,0.04156975]
[1724507033278,7.78,157.86,157.84,0.04156975]
[1724507033670,7.78,157.85,157.84,0.04156975]
[1724507041979,7.78,157.87,157.84,0.04156975]
[1724507046678,3.21147139,157.88,157.84,0.04156975]
[1724507046880,7.82597139,157.88,157.84,0.04156975]
[1724507047380,10.99157139,157.88,157.84,0.04156975]
[1724507054791,7.82597139,157.88,157.84,0.04156975]
[1724507055884,0.04597139,157.88,157.84,0.04156975]
[1724507056086,7.82597139,157.88,157.84,0.04156975]
[1724507060995,10.99147139,157.88,157.84,0.04156975]